bitfinex/quotes_ETHUSD_20250126
["timestamp","ask_amount","ask_price","bid_price","bid_amount"]
[1737910705447,0.27687181,3317.9,3317.8,3.7808]
[1737910705654,6.77412,3318.4,3317.8,3.7808]
[1737910705863,0.27687181,3317.9,3317.8,3.7808]
[1737910706032,6.77412,3318.4,3317.8,3.7808]
[1737910706232,0.27687181,3317.9,3317.8,3.7808]
[1737910706458,6.77412,3318.4,3317.8,4.460302]
[1737910706624,0.27687181,3317.9,3317.8,3.7808]
[1737910707121,6.77412,3318.4,3317.8,3.7808]
[1737910707322,0.27705545,3318.3,3317.8,3.7808]
[1737910708153,0.27705545,3318.3,3317.8,0.7668]
[1737910708345,0.27705545,3318.3,3317.9,3.01393]
[1737910709762,0.27705545,3318.3,3317.9,3.007618]
[1737910713368,0.27705545,3318.3,3317.8,0.7668]
[1737910713539,0.27705545,3318.3,3317.9,0.55]
[1737910714672,0.27705545,3318.3,3317.9,3.56394]
[1737910717376,6.01344,3318.5,3317.9,3.56394]
[1737910717594,0.27709438,3318.4,3317.9,3.56394]
[1737910720084,0.86685806,3318.4,3317.9,3.56394]
[1737910721660,0.27709438,3318.4,3317.9,3.56394]
[1737910723452,0.27709438,3318.4,3318.1,3.8132]
[1737910723653,0.27709438,3318.4,3318.2,3.01366]
[1737910723954,0.27709438,3318.3,3318.2,3.01366]
[1737910724163,3.7611,3318.7,3318.2,3.01366]
[1737910724464,0.27709438,3318.6,3318.3,3.01352]
[1737910727106,0.27709438,3318.6,3318.4,0.55]
[1737910727511,0.7883,3318.9,3318.5,3.0134]
[1737910728509,0.7883,3318.9,3318.4,3.56349]
[1737910734019,0.27771201,3318.8,3318.4,3.56349]
[1737910735314,0.27771201,3318.8,3318.4,3.56342]
[1737910736254,0.27771201,3318.8,3318.5,3.0134]
[1737910737281,0.27771201,3318.8,3318.6,3.01327]
[1737910737688,0.27771201,3318.8,3318.7,3.01322]
[1737910737884,0.27771201,3318.8,3318.7,4.165869]
[1737910738089,3.0,3319.6,3318.7,4.165869]
[1737910738090,0.7536,3319.5,3319.0,3.01289]
[1737910738510,0.27804021,3319.4,3319.0,3.01289]
[1737910739403,0.27804021,3319.4,3319.0,3.01288]
[1737910739808,3.29063021,3319.4,3318.9,0.55]
[1737910740133,3.29063021,3319.4,3318.9,3.56304]
[1737910740496,0.27804021,3319.4,3318.9,3.56304]
[1737910746130,0.27804021,3319.4,3318.9,0.55]
[1737910746336,0.27804021,3319.4,3318.9,3.56304]
[1737910750649,0.86898559,3319.4,3318.9,3.56304]
[1737910752853,0.27804021,3319.4,3318.9,3.56304]
[1737910755083,0.68245523,3319.4,3318.8,3.83579]
[1737910755271,3.01308,3318.9,3318.4,5.31]
[1737910755457,0.7795,3318.8,3318.4,5.31]
[1737910755640,1.05800735,3318.8,3318.4,5.31]
[1737910756274,4.07113735,3318.8,3318.4,5.31]
[1737910756469,0.70842174,3318.7,3318.4,5.31]
[1737910756669,0.7795,3318.6,3318.1,3.01374]
[1737910757021,0.27850735,3318.5,3318.1,3.01374]
[1737910757964,0.27850735,3318.5,3318.2,3.01367]
[1737910760642,0.7795,3318.6,3318.2,3.01367]
[1737910761175,0.7795,3318.6,3318.0,3.01384]
[1737910761176,0.7795,3318.4,3318.0,3.01384]
[1737910761339,0.7795,3318.4,3317.9,3.01394]
[1737910761723,0.7795,3318.2,3317.9,3.01394]
[1737910761923,0.7795,3318.1,3317.6,3.01416]
[1737910762169,4.07117221,3318.1,3317.5,3.0143]
[1737910762331,4.30015243,3318.1,3317.5,3.0143]
[1737910762529,3.01389,3318.0,3317.3,3.01443]
[1737910762764,1.05725096,3317.9,3317.4,3.01439]
[1737910763199,0.7795,3317.8,3317.2,3.01456]
[1737910763363,0.2776063,3317.7,3317.3,0.55]
[1737910764165,0.2776063,3317.7,3317.3,3.01449]
[1737910769220,0.7728,3317.6,3316.9,3.01483]
[1737910769362,0.7728,3317.4,3316.9,3.01483]
[1737910769567,1.05018371,3317.3,3316.8,0.55]
[1737910769819,1.05018371,3317.3,3316.7,3.01497]
[1737910770117,1.05018371,3317.3,3316.9,0.55]
[1737910771020,1.05018371,3317.3,3316.9,3.56484]
[1737910772689,1.05018371,3317.3,3317.0,3.01474]
[1737910772887,0.27738371,3317.3,3317.1,3.01465]
[1737910773210,3.0,3317.5,3317.1,3.01465]
[1737910773615,0.27667143,3317.4,3317.1,3.01465]
[1737910774619,0.27667143,3317.3,3317.1,3.01465]
[1737910775013,0.7619,3317.6,3317.1,3.01465]
[1737910775230,0.27667143,3317.5,3317.3,3.01448]
[1737910776409,0.27667143,3317.5,3317.2,0.55]
[1737910778752,0.27667143,3317.5,3317.1,3.01465]
[1737910779047,0.27667143,3317.5,3316.6,6.03012]
[1737910779048,3.01451,3317.3,3316.6,6.03012]
[1737910779249,3.01464,3317.2,3316.6,3.01506]
[1737910779451,3.291317,3317.2,3316.6,3.01506]
[1737910779750,0.7619,3316.8,3316.2,3.01542]
[1737910779900,3.77686,3316.8,3316.2,3.01542]
[1737910780342,0.27658237,3316.7,3316.3,0.55]
[1737910780697,3.77686,3316.8,3316.3,0.55]
[1737910781199,0.27658237,3316.7,3316.3,0.55]
[1737910781394,4.456033,3316.8,3316.3,0.55]
[1737910781602,0.27658237,3316.7,3316.3,0.55]
[1737910781846,4.456033,3316.8,3316.3,0.55]
[1737910782045,0.27658237,3316.6,3316.3,0.55]
[1737910782196,4.456033,3316.8,3316.3,0.55]
[1737910782396,0.27658237,3316.7,3316.3,0.55]
[1737910782604,4.456033,3316.8,3316.3,0.55]
[1737910782945,0.27658237,3316.7,3316.3,0.55]
[1737910783154,4.06637091,3316.7,3316.0,3.01562]
[1737910783359,3.78978854,3316.7,3316.0,3.01562]
[1737910783517,0.27599223,3316.6,3316.1,0.55]
[1737910783719,0.27599223,3316.6,3316.1,3.56553]
[1737910788564,0.7992,3316.5,3316.0,0.55]
[1737910788734,0.7992,3316.5,3315.8,1.3455]
[1737910788937,0.7992,3316.7,3316.2,3.01542]
[1737910789271,0.27375376,3316.6,3316.2,3.01542]
[1737910790567,0.7992,3316.5,3316.1,0.55]
[1737910790769,0.7992,3316.5,3316.1,3.56558]
[1737910790918,0.27378721,3316.4,3316.1,3.56558]
[1737910791124,0.7992,3316.3,3315.7,3.0159]
[1737910791383,0.7992,3316.3,3315.6,0.60998078]
[1737910791384,0.7992,3316.3,3315.8,3.01585]
[1737910791668,0.27369243,3316.2,3315.9,0.55]
[1737910791818,0.7992,3316.1,3315.9,0.55]
[1737910792024,0.7992,3316.1,3315.8,3.01585]
[1737910792236,0.27369243,3316.0,3315.8,3.01585]
[1737910792871,0.7992,3315.9,3315.3,3.01624]
[1737910793171,0.7992,3315.9,3315.4,3.01614]
[1737910793469,0.27369243,3315.8,3315.5,0.55]
[1737910793826,0.27369243,3315.8,3315.4,3.01622]
[1737910797570,0.27369243,3315.8,3315.5,3.01607]
[1737910798573,0.27369243,3315.8,3315.6,3.01597]
[1737910798877,0.7992,3316.2,3315.7,3.01595]
[1737910799428,0.7992,3316.2,3315.6,3.01597]
[1737910799778,0.7992,3316.2,3315.8,3.01581]
[1737910800129,0.7992,3316.2,3315.8,3.0158]
[1737910800362,0.7992,3316.2,3315.9,3.01573]
[1737910801607,3.81435,3316.6,3316.1,3.01557]
[1737910801909,2.007133,3316.6,3316.1,3.01557]
[1737910802065,0.7992,3316.6,3316.1,3.01557]
[1737910802765,0.7992,3316.6,3316.3,3.01537]
[1737910803064,3.7992,3317.0,3316.5,3.01518]
[1737910803463,0.7992,3317.0,3316.5,3.01518]
[1737910803706,0.7992,3317.0,3316.6,3.01511]
[1737910803865,0.7992,3317.0,3316.7,3.01504]
[1737910804578,3.77432,3317.3,3316.7,3.01504]
[1737910804779,0.377432,3317.2,3316.7,3.01504]
[1737910807082,3.392032,3317.2,3316.7,3.01504]
[1737910808019,0.377432,3317.2,3316.7,3.01504]
[1737910808225,0.7598,3317.3,3316.8,0.55]
[1737910808384,0.7598,3317.3,3317.0,3.01477]
[1737910808585,0.7598,3317.3,3317.0,3.01476]
[1737910810113,0.7598,3317.3,3316.9,3.01478]
[1737910810288,0.7615,3317.6,3317.1,3.01467]
[1737910810488,1.139064,3317.6,3317.1,3.01467]
[1737910811194,0.7615,3317.6,3317.1,3.01467]
[1737910811440,0.7615,3317.6,3317.3,3.01449]
[1737910811736,0.7615,3317.6,3317.1,3.01467]
[1737910813586,3.01441,3317.4,3316.9,3.01482]
[1737910813824,3.01441,3317.4,3316.7,3.015]
[1737910814126,0.7615,3317.3,3316.7,3.015]
[1737910816124,0.7615,3317.3,3316.6,3.0151]
[1737910816302,0.7615,3317.3,3316.8,3.01493]
[1737910817298,0.7615,3317.2,3316.6,3.0151]
[1737910817500,3.77619,3317.1,3316.6,3.0151]
[1737910817721,4.0321318,3317.1,3316.4,6.03052]
[1737910817886,3.7764,3316.9,3316.0,3.01562]
[1737910818088,0.7615,3316.4,3315.8,3.01579]
[1737910818327,0.7615,3316.4,3315.5,0.7982]
[1737910818502,3.2713618,3316.3,3315.7,3.01595]
[1737910818842,3.77712,3316.1,3315.5,3.01613]
[1737910819213,0.2557467,3316.0,3315.5,3.01613]
[1737910819650,3.77712,3316.1,3315.5,3.01613]
[1737910820947,3.01569,3316.0,3315.2,0.3473111]
[1737910821111,3.01569,3316.0,3315.4,3.01622]
[1737910821314,0.25550137,3315.9,3315.4,3.01622]
[1737910822253,0.25550137,3315.9,3315.5,3.01608]
[1737910822719,3.7771,3316.1,3315.5,3.01608]
[1737910822932,0.25550137,3315.8,3315.5,3.01608]
[1737910823244,0.25550137,3315.7,3315.5,3.01608]
[1737910823444,3.7771,3316.1,3315.5,3.01608]
[1737910823641,0.25550137,3316.0,3315.5,3.01608]
[1737910824370,3.27121137,3316.0,3315.4,3.01619]
[1737910825387,0.25550137,3316.0,3315.5,3.01607]
[1737910828476,3.27118137,3316.0,3315.5,3.01607]
[1737910828678,3.27118137,3316.0,3315.3,3.01631]
[1737910830962,3.27118137,3316.0,3315.5,3.01613]
[1737910831710,3.27118137,3316.0,3315.0,6.71948009]
[1737910831711,0.7522,3315.6,3315.0,3.61178009]
[1737910831909,0.7522,3315.6,3315.0,3.0165]
[1737910832096,0.25477652,3315.5,3315.1,3.01643]
[1737910834528,0.25477652,3315.5,3315.0,3.0165]
[1737910834699,0.25477652,3315.5,3315.1,3.01649]
[1737910836032,0.25477652,3315.5,3315.0,3.0165]
[1737910836240,0.25477652,3315.5,3315.2,3.01638]
[1737910836733,0.25477652,3315.5,3315.4,3.01622]
[1737910837137,0.7522,3315.9,3315.5,3.01609]
[1737910839840,0.7522,3315.9,3315.2,0.8214]
[1737910840346,3.01587,3315.8,3315.2,3.01637]
[1737910841241,0.8157,3315.7,3315.2,3.01637]
[1737910842119,0.8157,3315.7,3315.4,3.01622]
[1737910844632,0.8157,3315.7,3315.2,3.83017]
[1737910845504,0.8157,3315.7,3315.3,3.01631]
[1737910847308,0.8157,3315.7,3315.4,3.01621]
[1737910848537,0.8157,3315.7,3315.2,3.83013]
[1737910849103,0.8157,3315.7,3315.3,3.01626]
[1737910849533,0.8157,3315.7,3315.4,3.01621]
[1737910849735,0.25378565,3315.6,3315.4,3.01621]
[1737910856178,0.25378565,3315.6,3315.2,6.84646]
[1737910856980,0.25378565,3315.6,3315.2,3.83013]
[1737910857142,0.25378565,3315.6,3315.3,3.01627]
[1737910860793,0.25378565,3315.6,3315.4,3.01617]
[1737910861153,0.25378565,3315.6,3315.5,3.01613]
[1737910861686,0.8249,3316.0,3315.5,3.01613]
[1737910861890,0.25376333,3315.9,3315.5,3.01613]
[1737910862689,0.25376333,3315.9,3315.4,3.01614]
[1737910862900,0.25376333,3315.9,3315.6,3.01604]
[1737910865577,0.25376333,3315.9,3315.4,3.0162]
[1737910866261,0.25376333,3315.9,3315.4,6.03237]
[1737910866462,0.25376333,3315.9,3315.5,3.01611]
[1737910867291,0.25376333,3315.9,3315.6,3.01601]
[1737910870210,0.25376333,3315.9,3315.8,3.01586]
[1737910870652,0.7853,3316.3,3315.9,3.01574]
[1737910871086,0.7853,3316.3,3315.8,3.01586]
[1737910874097,0.7853,3316.3,3316.0,3.01565]
[1737910875303,3.01566,3316.1,3315.2,3.0164]
[1737910875615,0.7853,3315.8,3315.4,3.01622]
[1737910876222,0.7853,3315.8,3315.2,3.0164]
[1737910876422,0.7853,3315.8,3315.2,3.01634]
[1737910876717,0.25429884,3315.7,3315.2,3.01634]
[1737910876928,0.7853,3315.6,3315.2,3.01634]
[1737910877226,0.25429884,3315.5,3315.3,3.01631]
[1737910879523,0.25429884,3315.5,3315.2,3.01634]
[1737910879729,0.25429884,3315.5,3315.3,3.0163]
[1737910887935,0.25429884,3315.5,3315.4,3.01622]
[1737910891046,0.7916,3316.1,3315.8,3.01585]
[1737910891638,0.7916,3316.1,3315.9,3.01574]
[1737910892705,0.7916,3316.1,3315.8,3.01585]
[1737910892906,5.25,3316.3,3316.0,3.01568]
[1737910893607,5.25,3316.3,3316.1,3.01557]
[1737910893852,5.25,3316.3,3316.0,3.01568]
[1737910894716,0.24558791,3316.2,3316.0,3.01568]
[1737910894915,5.25,3316.3,3316.0,3.01568]
[1737910895118,0.24558791,3316.2,3316.0,3.01568]
[1737910895317,5.25,3316.3,3316.0,3.01568]
[1737910895652,0.24558791,3316.2,3316.0,3.01568]
[1737910896042,0.7916,3316.4,3316.1,3.01559]
[1737910907544,3.79671,3316.7,3316.2,3.01549]
[1737910907744,0.417435,3316.6,3316.2,3.01549]
[1737910909574,0.24573917,3316.5,3316.2,3.01549]
[1737910910374,0.24573917,3316.4,3316.2,3.01549]
[1737910910683,3.79671,3316.7,3316.2,3.01549]
[1737910910860,0.24573917,3316.3,3316.2,3.01549]
[1737910911036,3.79671,3316.7,3316.2,3.01549]
[1737910911375,4.815633,3316.7,3316.0,3.8108]
[1737910911575,0.24573917,3316.6,3316.0,3.8108]
[1737910912655,0.24573917,3316.6,3316.0,0.7952]
[1737910912972,0.24573917,3316.6,3316.1,3.01558]
[1737910913386,0.24573917,3316.6,3316.2,3.01549]
[1737910913905,0.24573917,3316.6,3316.1,3.01558]
[1737910914060,0.24573917,3316.6,3316.3,3.01539]
[1737910914492,0.24573917,3316.6,3316.4,3.01527]
[1737910914797,0.24613136,3316.5,3316.4,3.01527]
[1737910914963,0.7816,3316.9,3316.4,3.01527]
[1737910915298,0.24613136,3316.8,3316.5,3.0152]
[1737910916799,0.24613136,3316.8,3316.5,6.8256]
[1737910917683,0.24613136,3316.8,3316.5,3.8104]
[1737910919589,0.24613136,3316.8,3316.5,3.0152]
[1737910921805,0.24613136,3316.8,3316.3,6.03071]
[1737910922099,0.24613136,3316.8,3316.4,3.01529]
[1737910924006,0.24613136,3316.8,3316.5,3.01522]
[1737910927309,0.24613136,3316.8,3316.5,2.88792446]
[1737910929266,0.24613136,3316.8,3316.2,3.01545]
[1737910929471,0.70575314,3316.7,3316.2,3.01545]
[1737910929867,0.24655144,3316.6,3316.2,3.01545]
[1737910931423,0.24655144,3316.6,3316.0,3.01563]
[1737910931424,0.783,3316.5,3316.0,3.01563]
[1737910931978,0.24655144,3316.4,3316.0,3.01563]
[1737910932134,0.24655144,3316.4,3316.1,3.01556]
[1737910933708,0.24655144,3316.4,3316.2,3.01549]
[1737910936941,0.783,3316.5,3316.2,3.01549]
[1737910937151,0.783,3316.5,3316.0,3.01566]
[1737910937313,0.783,3316.2,3315.9,3.01575]
[1737910937639,0.24638901,3316.1,3315.8,3.01583]
[1737910937946,0.24638901,3316.1,3315.6,3.01599]
[1737910938314,0.24638901,3316.1,3315.7,3.01594]
[1737910938715,0.24638901,3316.1,3315.7,3.29751597]
[1737910939583,0.65086991,3316.1,3315.7,0.28157597]
[1737910939844,3.01586,3315.8,3315.7,0.28157597]
[1737910940147,4.04472805,3315.8,3315.7,0.28157597]
[1737910940643,4.04472805,3315.8,3315.3,3.01629]
[1737910941151,4.04472805,3315.8,3315.0,3.01654]
[1737910941308,4.04472805,3315.8,3315.2,3.01638]
[1737910941640,4.75076986,3315.8,3315.2,3.01638]
[1737910941844,4.75076986,3315.8,3315.3,3.01631]
[1737910942245,4.75076986,3315.8,3315.3,3.29769179]
[1737910946658,4.75076986,3315.8,3315.3,3.01631]
[1737910946860,1.73490986,3315.8,3315.3,3.01631]
[1737910947055,1.02886805,3315.8,3315.4,3.01619]
[1737910947717,1.02886805,3315.8,3315.0,0.55]
[1737910947919,1.02886805,3315.8,3315.6,3.01603]
[1737910948733,1.02886805,3315.8,3315.4,3.0162]
[1737910958615,1.02886805,3315.8,3315.4,3.01615]
[1737910959112,1.02886805,3315.8,3315.5,3.01612]
[1737910959410,0.24586805,3315.8,3315.5,3.01612]
[1737910959703,1.2125809,3316.1,3315.6,3.01596]
[1737910959872,0.24546462,3315.7,3315.6,3.01596]
[1737910960079,0.8081,3316.1,3315.6,3.01596]
[1737910960399,6.0814,3316.3,3315.6,3.01596]
[1737910960605,0.24549824,3316.0,3315.8,3.01582]
[1737910960804,6.0814,3316.3,3315.8,3.01582]
[1737910960970,0.24557109,3315.9,3315.8,3.01582]
[1737910961179,6.0814,3316.3,3315.8,3.01582]
[1737910961505,0.24564395,3315.9,3315.6,3.76676]
[1737910961702,3.0155,3316.2,3315.6,3.01596]
[1737910961857,0.24564395,3315.8,3315.6,3.01596]
[1737910962061,3.0155,3316.2,3315.6,3.01596]
[1737910962260,0.24564395,3315.7,3315.6,3.01596]
[1737910962460,0.90969,3316.1,3315.6,3.01596]
[1737910962686,0.24564395,3315.7,3315.6,3.01596]
[1737910962893,0.8314,3316.1,3315.6,3.01596]
[1737910963094,0.24564395,3315.7,3315.6,3.01596]
[1737910963296,0.8314,3316.1,3315.6,3.01596]
[1737910963505,0.24564395,3315.7,3315.6,3.01596]
[1737910964002,1.74109,3316.1,3315.6,3.01596]
[1737910964186,0.24564395,3315.7,3315.6,3.01596]
[1737910964387,1.74109,3316.1,3315.6,3.01596]
[1737910964583,0.24564395,3315.7,3315.6,3.01596]
[1737910964803,0.8314,3316.1,3315.6,3.01596]
[1737910964986,0.24564395,3315.7,3315.6,3.01596]
[1737910965187,0.8314,3316.1,3315.6,3.01596]
[1737910965417,0.24564395,3315.7,3315.6,3.01596]
[1737910965685,0.8314,3316.1,3315.7,3.01595]
[1737910965898,1.21609,3316.1,3315.7,3.01595]
[1737910966080,0.24564395,3316.0,3315.7,3.01595]
[1737910967026,0.24564395,3316.0,3315.9,3.01577]
[1737910967433,0.7644,3316.4,3315.9,3.01577]
[1737910967612,0.7644,3316.4,3316.0,3.01561]
[1737910967800,1.442356,3316.4,3316.0,3.01561]
[1737910968186,0.677956,3316.4,3315.9,3.01577]
[1737910968382,0.7644,3316.6,3316.2,3.01549]
[1737910969782,0.24568877,3316.5,3316.2,3.01549]
[1737910972596,0.24568877,3316.5,3316.4,3.01531]
[1737910972800,0.7644,3316.9,3316.4,3.01531]
[1737910972979,0.24619298,3316.5,3316.4,3.01531]
[1737910973181,0.7644,3316.9,3316.4,3.01531]
[1737910973381,0.24619298,3316.5,3316.4,3.01531]
[1737910973571,0.7644,3316.9,3316.4,3.01531]
[1737910973780,0.24619298,3316.5,3316.4,3.01531]
[1737910973986,0.7644,3316.9,3316.4,3.01531]
[1737910974187,0.24624339,3316.5,3316.4,3.01531]
[1737910974355,0.7644,3316.9,3316.4,3.01531]
[1737910974557,0.24624339,3316.8,3316.4,3.01531]
[1737910979300,0.7644,3316.6,3316.0,6.03125]
[1737910979695,0.7644,3316.6,3316.1,3.01557]
[1737910979887,0.2462994,3316.5,3316.1,3.01557]
[1737910980406,0.2462994,3316.5,3316.0,3.01561]
[1737910983413,0.2462994,3316.5,3316.1,3.01553]
[1737910985201,0.2462994,3316.5,3316.3,3.01538]
[1737910985507,0.2462994,3316.5,3316.2,3.01548]
[1737910986566,0.2462994,3316.5,3316.4,3.01531]
[1737910986801,0.7728,3316.9,3316.4,3.76871]
[1737910986979,0.7728,3316.9,3316.6,3.01511]
[1737910987180,0.7728,3317.1,3316.6,3.01511]
[1737910988381,0.7728,3317.1,3316.6,6.03019]
[1737910988583,3.0,3317.2,3316.7,0.7534]
[1737910988783,1.22745279,3317.4,3316.9,3.01479]
[1737910989494,1.22745279,3317.4,3317.0,3.01474]
[1737910989804,3.7728,3317.6,3317.0,3.01474]
[1737910990644,6.78705,3317.6,3317.0,3.01474]
[1737910990912,4.752919,3317.6,3317.0,3.01474]
[1737910991221,4.752919,3317.6,3316.8,6.02975]
[1737910991222,3.01434,3317.5,3316.8,6.02975]
[1737910992110,3.0146,3317.2,3316.7,0.7534]
[1737910992329,3.0146,3317.2,3316.6,3.01509]
[1737910997354,3.0146,3317.2,3316.4,3.01524]
[1737910997519,3.0146,3317.2,3316.2,8.32549]
[1737910997520,3.01485,3317.0,3316.3,3.01537]
[1737910997717,3.79675,3317.0,3316.3,3.01537]
[1737910999222,3.0149,3316.9,3316.3,3.01537]
[1737910999708,0.24666345,3316.8,3316.3,3.01537]
[1737911000855,0.24666345,3316.8,3316.1,0.8176]
[1737911001051,3.01502,3316.8,3316.1,0.8176]
[1737911001263,0.24666345,3316.7,3316.2,3.01548]
[1737911002154,0.24666345,3316.7,3316.3,3.01536]
[1737911002668,0.24671385,3316.6,3316.3,3.01536]
[1737911002951,3.01489,3316.9,3316.3,3.01536]
[1737911003113,0.24648983,3316.5,3316.3,3.01536]
[1737911003312,3.01489,3316.9,3316.3,3.01536]
[1737911003554,0.24648983,3316.4,3316.3,3.01536]
[1737911003752,3.01489,3316.9,3316.3,3.01536]
[1737911003955,0.24648983,3316.4,3316.3,3.01536]
[1737911004158,0.7819,3317.0,3316.4,3.01528]
[1737911004454,0.379665,3316.9,3316.4,3.01528]
[1737911009060,0.379665,3316.9,3316.4,6.03051]
[1737911009660,0.7819,3317.0,3316.3,0.8099]
[1737911009877,3.7695,3317.3,3317.0,3.01475]
[1737911010168,0.7695,3317.3,3317.0,3.01475]
[1737911010860,3.8305,3317.5,3317.0,3.01475]
[1737911011074,0.8305,3317.5,3317.0,3.01475]
[1737911011368,0.8305,3317.8,3317.3,3.01448]
[1737911011525,0.8305,3317.8,3317.4,3.01434]
[1737911011712,3.0,3317.9,3317.4,3.01434]
[1737911014863,0.2363792,3317.8,3317.2,3.01457]
[1737911015406,3.2504492,3317.8,3317.2,3.01457]
[1737911015607,4.25993412,3317.8,3317.2,3.01457]
[1737911018813,0.8305,3317.7,3317.2,3.01457]
[1737911019319,0.8305,3317.1,3316.6,3.01509]
[1737911019510,1.215009,3317.1,3316.6,3.01509]
[1737911019697,0.8305,3317.1,3316.6,3.01509]
[1737911019899,0.23662583,3317.0,3316.6,3.01509]
[1737911020068,0.8305,3317.1,3316.6,3.01509]
[1737911020268,0.23662583,3316.9,3316.6,3.01509]
[1737911020567,0.23662583,3316.8,3316.6,3.01509]
[1737911020764,3.01491,3316.9,3316.5,5.31]
[1737911020965,3.25158583,3316.8,3316.3,3.01535]
[1737911024318,3.25158583,3316.8,3316.2,3.81757]
[1737911026320,3.25158583,3316.8,3316.3,0.11594672]
[1737911027216,3.25158583,3316.8,3316.4,0.11594672]
[1737911028416,3.25158583,3316.8,3316.5,0.11594672]
[1737911029090,3.94683091,3316.8,3316.5,0.11594672]
[1737911029684,0.817,3316.7,3316.6,0.11594672]
[1737911030106,1.05340162,3316.7,3316.6,0.11594672]
[1737911043643,4.06844162,3316.7,3316.6,0.11594672]
[1737911053486,0.23640162,3316.7,3316.6,3.92877672]
[1737911053645,0.23640162,3316.7,3316.6,4.62317739]
[1737911053847,6.01428,3317.6,3317.0,3.01476]
[1737911054043,6.01428,3317.6,3317.1,0.7977]
[1737911054248,0.23599791,3317.5,3317.1,0.7977]
[1737911054862,0.23599791,3317.5,3317.2,0.11594672]
[1737911056079,0.23599791,3317.5,3317.3,0.11594672]
[1737911057578,0.23599791,3317.5,3317.4,0.11594672]
[1737911058580,3.25030791,3317.5,3317.4,0.11594672]
[1737911062397,0.23599791,3317.5,3317.4,0.11594672]
[1737911062687,3.0,3317.6,3317.4,0.11594672]
[1737911062996,0.23673238,3317.5,3317.4,0.11594672]
[1737911063362,3.01419,3317.7,3317.4,0.11594672]
[1737911063976,0.23673238,3317.6,3317.4,0.11594672]
[1737911064296,3.25096238,3317.6,3317.4,0.11594672]
[1737911064494,3.01431,3317.5,3317.4,0.11594672]
[1737911064847,3.25104238,3317.5,3317.4,0.11594672]
[1737911067701,0.23673238,3317.5,3317.4,0.11594672]
[1737911067901,3.01431,3317.5,3317.4,0.11594672]
[1737911068211,3.25104238,3317.5,3317.4,0.11594672]
[1737911068803,0.23673238,3317.5,3317.4,0.11594672]
[1737911069101,6.02841,3317.7,3317.4,0.11594672]
[1737911069260,0.23673238,3317.5,3317.4,0.11594672]
[1737911069459,3.617101,3317.6,3317.4,0.11594672]
[1737911069709,0.23673238,3317.5,3317.4,0.11594672]
[1737911071269,3.01398,3317.9,3317.4,0.94834672]
[1737911071496,0.23680525,3317.5,3317.4,3.96272672]
[1737911071664,3.0,3318.0,3317.4,3.96272672]
[1737911072004,0.23684448,3317.5,3317.4,3.96272672]
[1737911072463,3.01389,3318.0,3317.4,3.84678]
[1737911072663,0.23684448,3317.5,3317.4,3.84678]
[1737911072905,3.01389,3318.0,3317.4,3.84678]
[1737911073108,0.23684448,3317.5,3317.4,3.84678]
[1737911073275,3.01389,3318.0,3317.4,3.84678]
[1737911073809,0.23684448,3317.9,3317.4,3.84678]
[1737911074402,0.23684448,3317.9,3317.5,0.1157964]
[1737911075427,0.23684448,3317.9,3317.6,0.1157964]
[1737911076533,3.0141,3317.8,3317.6,0.1157964]
[1737911076707,3.0141,3317.8,3317.7,0.1157964]
[1737911077130,3.25094448,3317.8,3317.7,0.1157964]
[1737911077831,3.57603893,3317.8,3317.7,0.1157964]
[1737911078494,0.56193893,3317.8,3317.7,0.1157964]
[1737911080520,0.23684448,3317.8,3317.7,0.1157964]
[1737911084897,0.23727042,3317.8,3317.7,0.1157964]
[1737911085090,6.01391,3318.0,3317.7,0.1157964]
[1737911085293,0.23727042,3317.8,3317.7,0.1157964]
[1737911085493,6.01391,3318.0,3317.7,0.1157964]
[1737911085812,0.23727042,3317.8,3317.7,0.1157964]
[1737911086023,3.01397,3317.9,3317.7,0.1157964]
[1737911086219,0.23729285,3317.8,3317.4,0.8324]
[1737911086434,3.25133285,3317.8,3317.4,0.8324]
[1737911087203,3.25133285,3317.8,3317.5,0.11595692]
[1737911088346,4.27599913,3317.8,3317.5,0.11595692]
[1737911088523,3.01422,3317.6,3317.1,0.757]
[1737911089244,0.23723681,3317.5,3317.1,0.757]
[1737911089545,3.01404,3317.8,3317.2,3.13056351]
[1737911089719,0.23723681,3317.4,3317.2,3.13056351]
[1737911089928,3.01404,3317.8,3317.2,3.13056351]
[1737911090240,3.01404,3317.8,3317.3,0.757]
[1737911090442,6.01389,3318.0,3317.3,0.87298351]
[1737911090646,6.01389,3318.0,3317.3,3.88742351]
[1737911091336,6.01389,3318.0,3317.4,3.01437]
[1737911092149,6.01389,3318.0,3317.5,0.11598351]
[1737911092335,6.01389,3318.0,3317.5,3.13029351]
[1737911092651,6.01389,3318.0,3317.6,0.757]
[1737911093437,6.01377,3318.1,3317.7,0.11598351]
[1737911093658,3.0,3318.1,3317.7,0.11598351]
[1737911094281,6.0138,3318.1,3317.8,0.11598351]
[1737911095519,6.0138,3318.1,3317.9,0.11598351]
[1737911095866,6.916552,3318.1,3317.9,0.11598351]
[1737911096874,6.916552,3318.1,3318.0,0.11598351]
[1737911100871,3.01372,3318.2,3318.0,0.11598351]
[1737911101678,3.01372,3318.2,3318.1,0.11598351]
[1737911104738,3.25118093,3318.2,3318.1,0.11598351]
[1737911122106,0.23746093,3318.2,3318.1,0.11598351]
[1737911122477,3.83391,3318.4,3318.1,0.11598351]
[1737911122668,0.2375842,3318.2,3318.1,0.11598351]
[1737911122869,4.87784673,3318.4,3318.1,0.11598351]
[1737911123068,0.2375842,3318.2,3318.1,0.11598351]
[1737911123370,3.01362,3318.3,3318.1,0.11598351]
[1737911123569,0.2375842,3318.2,3318.1,0.11598351]
[1737911123779,3.01351,3318.4,3318.1,0.11598351]
[1737911123979,0.2375842,3318.2,3318.1,0.11598351]
[1737911124210,3.01351,3318.4,3318.1,0.11598351]
[1737911124509,0.2375842,3318.2,3318.1,0.11598351]
[1737911124680,3.01351,3318.4,3318.1,0.11598351]